fUSD/lending_fUSD_20250324
["ID","MTS","AMOUNT","RATE_DAILY","PERIOD"]
[356602488,1742777432642,-2045009.38208577,0.00012,2]
[356602684,1742777440777,-3863.81327704,0.00012,2]
[356602717,1742777443394,-8642.37986801,0.00012,2]
[356602734,1742777446482,-2822.31190964,0.00012,2]
[356602735,1742777446493,-319.31460294,0.00012,2]
[356602736,1742777446505,-18861.88276497,0.00012,2]
[356602737,1742777446536,-397.94510674,0.00012,2]
[356602738,1742777460591,454.0,0.00031854,120]
[356602739,1742778212773,1090.65757448,0.00031837,120]
[356602740,1742778257091,3169.92791349,0.00031837,120]
[356602761,1742778631438,-172.16993295,0.000118,2]
[356602762,1742778631447,-150.0,0.00011825,2]
[356602763,1742778631457,-21841.13854624,0.000119,2]
[356602764,1742778631468,-983.92475376,0.000119,2]
[356602765,1742778631477,-361.27524568,0.000119,2]
[356602766,1742778631631,-474.74993295,0.000119,2]
[356602767,1742778631687,-308.79,0.000119,2]
[356602880,1742778637360,-853.58252137,0.000119,2]
[356602881,1742778637369,-5399.95834893,0.000119,2]
[356602882,1742778637471,-673.12762176,0.000119,2]
[356602883,1742778637528,-292.59393223,0.000119,2]
[356602884,1742778637540,-2848.50626237,0.000119,2]
[356602885,1742778637588,-575.30635287,0.000119,2]
[356602886,1742778637599,-675.54813812,0.000119,2]
[356602887,1742778637702,-429.985,0.000119,2]
[356602929,1742778645435,-1723.2017018,0.000119,2]
[356602930,1742778645575,-347.0694454,0.000119,2]
[356602931,1742778645632,-24337.55076165,0.000119,2]
[356602932,1742778645644,-1190.28610491,0.000119,2]
[356602933,1742778645691,-1062.47222996,0.000119,2]
[356602934,1742778645703,-157.60513701,0.000119,2]
[356602935,1742778645712,-223.5509,0.000119,2]
[356602936,1742778645721,-315.3528194,0.000119,2]
[356602937,1742778645733,-2801.33621572,0.000119,2]
[356602938,1742778645742,-157.06996437,0.000119,2]
[356602939,1742778645751,-15513.35218095,0.0001199,2]
[356602940,1742778701732,7341.99,0.00031837,120]
[356602941,1742778945649,968.00265714,0.00031836,30]
[356602942,1742779082934,-150.0,0.00011,2]
[356602943,1742779381209,2040.0,0.00025,60]
[356602991,1742779831701,-100.0,0.00011,2]
[356602992,1742779831711,-150.0,0.0001108,2]
[356602993,1742779831721,-3073.25180227,0.000117,2]
[356602994,1742779831730,-1055.214,0.0001176,2]
[356602995,1742779831741,-590.75,0.00011766,2]
[356602996,1742779831751,-2016.5029,0.0001179,2]
[356602997,1742779831761,-590.75,0.00011791,2]
[356602998,1742779831770,-590.75,0.00011816,2]
[356602999,1742779831779,-590.75,0.0001184,2]
[356603000,1742779831789,-20366.97496535,0.0001184,2]
[356603001,1742779831906,-1951.34503465,0.0001184,2]
[356603002,1742779831916,-513.63445221,0.00011865,2]
[356603003,1742779831984,-77.11554779,0.00011865,2]
[356603004,1742779831994,-4758.28,0.00011865,2]
[356603005,1742779832005,-1138.78,0.00011865,2]
[356603006,1742779832015,-300.0,0.00011879,2]
[356603007,1742779832024,-22394.15567219,0.0001188,2]
[356603008,1742779832035,-590.75,0.0001189,2]
[356603009,1742779832045,-1931.60720275,0.00011898,2]
[356603010,1742779832066,-401.38075047,0.00011898,2]
[356603011,1742779832078,-1637.54204678,0.00011898,2]
[356603012,1742779832087,-219.55570751,0.000119,2]
[356603013,1742779832096,-188.0868,0.000119,2]
[356603014,1742779832106,-193.57447678,0.00011915,2]
[356603071,1742779837643,-151.72825163,0.0001166,2]
[356603072,1742779837653,-397.17552322,0.00011915,2]
[356603073,1742779837662,-232.34561943,0.00011939,2]
[356603074,1742779837718,-358.40438057,0.00011939,2]
[356603075,1742779837728,-590.75,0.00011964,2]
[356603076,1742779837738,-143.84561943,0.00011989,2]
[356603085,1742779840114,-446.90438057,0.00011989,2]
[356603086,1742779840124,-150.0,0.00011989,2]
[356603087,1742779840134,-407.80444169,0.0001199,2]
[356603088,1742779840151,-275.03208881,0.0001199,2]
[356603121,1742779845995,-691.80464033,0.0001199,2]
[356603122,1742779846125,-2056.13624377,0.0001199,2]
[356603125,1742779922151,350.0,0.0001177,3]
[356603126,1742780041735,350.0,0.00011705,3]
[356603127,1742780300894,168.0,0.00031835,120]
[356603128,1742780593431,741.64565667,0.00031836,45]
[356603129,1742780754232,1605.7630101,0.00031836,30]
[356603130,1742780775057,-154.3672,0.00011,2]
[356603131,1742780804002,254.0,0.00011999,120]
[356603148,1742780881136,150.0,0.00011504,7]
[356603159,1742781032171,-95.6328,0.00011,2]
[356603160,1742781032180,-150.0,0.00011255,2]
[356603161,1742781032190,-1000.0,0.0001151,2]
[356603162,1742781032199,-300.0,0.00011512,2]
[356603163,1742781032208,-151.92041292,0.00011573,2]
[356603164,1742781032218,-357.4914715,0.0001164,2]
[356603165,1742781032227,-855.132,0.0001176,2]
[356603166,1742781032237,-151.9204129,0.000118,2]
[356603167,1742781032246,-768.2404,0.000119,2]
[356603168,1742781032255,-461.05455384,0.000119,2]
[356603169,1742781032264,-159.74468696,0.000119,2]
[356603170,1742781032274,-244.95320198,0.000119,2]
[356603171,1742781032283,-1884.55780856,0.000119,2]
[356603172,1742781032292,-150.0,0.00011989,2]
[356603173,1742781032302,-12292.03192733,0.0001199,2]
[356603174,1742781032313,-634.23674173,0.0001199,2]
[356603177,1742781032329,-965.94150909,0.0001199,2]
[356603178,1742781032340,-300.18029861,0.0001199,2]
[356603185,1742781037896,-867.196083,0.0001199,2]
[356603186,1742781037907,-596.76792635,0.0001199,2]
[356603199,1742781039889,-1385.57929836,0.0001199,2]
[356603200,1742781039902,-1204.88694405,0.0001199,2]
[356603201,1742781039914,-286.19230004,0.0001199,2]
[356603202,1742781040022,-3924.09701614,0.0001199,2]
[356603229,1742781043015,-273.99582881,0.0001199,2]
[356603230,1742781043230,-21496.56211292,0.0001199,2]
[356603231,1742781043240,-151.0,0.00011993,2]
[356603232,1742781043249,-557.0,0.00012,2]
[356603233,1742781043259,-76945.44113337,0.00012,2]
[356603275,1742781344226,278.05521283,0.00031836,30]
[356603278,1742781722094,350.0,0.0001167,3]
[356603279,1742781722202,350.0,0.0001176,3]
[356603280,1742781841596,350.0,0.0001167,3]
[356603295,1742782232110,-406.095148,0.0001164,2]
[356603296,1742782232120,-150.0,0.0001167,2]
[356603297,1742782232130,-829.51,0.0001176,2]
[356603298,1742782232141,-164.77305858,0.000118,2]
[356603299,1742782232150,-599.5295,0.000119,2]
[356603300,1742782232160,-2979.34868406,0.000119,2]
[356603301,1742782232173,-2259.52791594,0.000119,2]
[356603302,1742782232183,-823.3471,0.000119,2]
[356603303,1742782232192,-168.86099538,0.000119,2]
[356603304,1742782232202,-157.06996437,0.000119,2]
[356603305,1742782232211,-4533.84010746,0.000119,2]
[356603306,1742782232222,-222.4007949,0.000119,2]
[356603307,1742782232231,-151.0,0.00011993,2]
[356603308,1742782232241,-844.795171,0.00011997,2]
[356603309,1742782232250,-3245.6371203,0.00011997,2]
[356603310,1742782232261,-1163.3896508,0.00011997,2]
[356603311,1742782232270,-510.0,0.00012,2]
[356603312,1742782232424,-2404.53583466,0.00012,2]
[356603313,1742782232448,-551.9061778,0.00012,2]
[356603314,1742782232460,-503.48436925,0.00012,2]
[356603350,1742782240246,-1256.37187236,0.000119,2]
[356603351,1742782240255,-2721079.61563255,0.00012,2]
[356603352,1742782240298,-251.97237107,0.00012,2]
[356603369,1742782246014,-379.79956158,0.00012,2]
[356603370,1742782246120,-3996.25752578,0.00012,2]
[356603378,1742783312300,179.47276735,0.00031854,60]
[356603389,1742783432183,-250.0,0.00011,2]
[356603392,1742783432194,-132.53107012,0.0001108,2]
[356603394,1742783432207,-17.46892988,0.0001108,2]
[356603396,1742783432216,-263.76108821,0.0001164,2]
[356603397,1742783432292,-155.08470039,0.0001164,2]
[356603398,1742783432302,-128.21618464,0.0001173,2]
[356603399,1742783432349,-52.37856427,0.0001173,2]
[356603400,1742783432360,-663.608,0.0001176,2]
[356603401,1742783432369,-2667.62735808,0.000119,2]
[356603402,1742783432459,-264.939999,0.000119,2]
[356603403,1742783432471,-3061.14336418,0.000119,2]
[356603434,1742783438101,-1658.47507623,0.000119,2]
[356603435,1742783438111,-637.0,0.000119,2]
[356603436,1742783438120,-1256.37187236,0.000119,2]
[356603437,1742783438130,-312.564,0.000119,2]
[356603438,1742783438139,-1036.2175284,0.00011997,2]
[356603439,1742783438148,-1417.555808,0.00011997,2]
[356603440,1742783438158,-3981.0668791,0.00011997,2]
[356603441,1742783438167,-1634.748836,0.00012,2]
[356603442,1742783438317,-6463.75185629,0.00012,2]
[356603443,1742783438367,-50631.24570396,0.00012,2]
[356603446,1742783440372,-2384669.02204832,0.00012,2]
[356603447,1742783440381,-600.0,0.00012,2]
[356603448,1742783440391,-337066.96545659,0.00012,2]
[356603449,1742783440585,-701.45417993,0.00012,2]
[356603450,1742783440639,-472.35192421,0.00012,2]
[356603451,1742783440650,-393.09544492,0.00012,2]
[356603464,1742783522068,350.0,0.0001177,3]
[356603465,1742783642181,350.0,0.00011705,3]
[356603466,1742783653630,1039.0,0.00025,60]
[356603467,1742784038906,696.45516,0.00012,3]
[356603468,1742784039287,696.45516,0.00012,3]
[356603469,1742784039628,696.45516,0.00012,3]
[356603487,1742784588931,-250.0,0.00011,2]
[356603496,1742784631393,-250.0,0.000114,2]
[356603497,1742784631402,-150.0,0.0001152,2]
[356603498,1742784631412,-150.0,0.00011639,2]
[356603499,1742784631421,-1084.0,0.000117,2]
[356603500,1742784631430,-1339.39739732,0.000119,2]
[356603501,1742784631775,-25948.46880268,0.000119,2]
[356603502,1742784631785,-568.79,0.00011937,2]
[356603503,1742784631795,-1782.58086754,0.0001199,2]
[356603504,1742784631805,-29607.51324003,0.00012,2]
[356603507,1742784637284,-348103.60515596,0.00012,2]
[356603508,1742784637391,-661.4479985,0.00012,2]
[356603568,1742784639632,-1429525.18637925,0.00012,2]
[356603569,1742784639642,-1292810.80112566,0.00012,2]
[356603588,1742784642559,-788.99643001,0.00012,2]
[356603590,1742784642889,-100777.62175434,0.00012,2]
[356603593,1742784645365,-4700.0,0.00012,2]
[356603594,1742784645731,-832.07055688,0.00012,2]
[356603612,1742785831644,-399.8405904,0.0001164,2]
[356603613,1742785831654,-1122.69784218,0.0001164,2]
[356603614,1742785831663,-150.0,0.000117,2]
[356603615,1742785831672,-530.887,0.0001176,2]
[356603616,1742785831681,-411.9435,0.000119,2]
[356603617,1742785831690,-4263.6238,0.000119,2]
[356603618,1742785831700,-49525.09497302,0.00012,2]
[356603619,1742785831711,-907.13820422,0.00012,2]
[356603620,1742785831908,-341.7,0.00012,2]
[356603671,1742785837660,-29432.86883115,0.00012,2]
[356603672,1742785837712,-299.25,0.00012,2]
[356603673,1742785837724,-705.17644885,0.00012,2]
[356603674,1742785837821,-421.5,0.00012,2]
[356603683,1742785839811,-1227.83298207,0.00012,2]
[356603692,1742785842995,-1722.50207466,0.00012,2]
[356603705,1742785844213,-324.9861574,0.00012,2]
[356603706,1742785844224,-1292810.80112566,0.00012,2]
[356603733,1742785846083,-1200.01688637,0.00012,2]
[356603740,1742785846885,-161866.62263499,0.00012,2]
[356603755,1742786259655,-157.6869111,0.00011,2]
[356603766,1742786998726,-92.3130889,0.00011,2]
[356603767,1742786998749,-65.3738222,0.00011206,2]
[356603779,1742787032096,-501.9761778,0.00011206,2]
[356603780,1742787032106,-150.0,0.00011394,2]
[356603781,1742787032116,-324.95485,0.00011581,2]
[356603782,1742787032125,-467.7690319,0.0001164,2]
[356603783,1742787032135,-1110.093,0.0001176,2]
[356603784,1742787032144,-1107.8155,0.000118,2]
[356603785,1742787032154,-1000.0,0.000119,2]
[356603786,1742787032163,-1576.0381,0.000119,2]
[356603787,1742787032172,-837.58124824,0.0001196,2]
[356603788,1742787032182,-165.35302206,0.00011993,2]
[356603789,1742787032251,-2.95154545,0.00011993,2]
[356603790,1742787032261,-1255.0,0.00012,2]
[356603791,1742787032270,-397.28501895,0.00012,2]
[356603792,1742787032282,-27853.76311232,0.00012,2]
[356603795,1742787037853,-390.2485017,0.0001164,2]
[356603796,1742787037863,-4459.34,0.00012,2]
[356603797,1742787037873,-1128.0,0.00012,2]
[356603798,1742787037883,-4169.93865943,0.00012,2]
[356603805,1742787039979,-254.34358082,0.00012,2]
[356603806,1742787039991,-611.03999535,0.00012,2]
[356603817,1742787042850,-527.5951,0.00012,2]
[356603848,1742787045843,-489.4049,0.00012,2]
[356603850,1742787045853,-1692.64252532,0.00012,2]
[356603885,1742787241984,350.0,0.0001171,3]
[356603886,1742787534357,960.27142679,0.00031825,120]
[356603887,1742787871501,150.0,0.00011573,7]
[356603893,1742788089412,-157.6869111,0.00011,2]
[356603894,1742788232062,-952.0,0.00011,2]
[356603895,1742788232114,-1408.38516504,0.00011,2]
[356603896,1742788232168,-7639.61483496,0.00011,2]
[356603897,1742788232178,-67.53310626,0.00011,2]
[356603898,1742788232189,-24.77998264,0.00011,2]
[356603899,1742788232198,-403.53,0.00011426,2]
[356603900,1742788232209,-502.0,0.00011479,2]
[356603901,1742788232218,-211.83685604,0.0001164,2]
[356603902,1742788232284,-211.50432876,0.0001164,2]
[356603903,1742788232294,-671.23777413,0.0001168,2]
[356603904,1742788232303,-888.075,0.0001176,2]
[356603905,1742788232313,-161.64366433,0.0001178,2]
[356603906,1742788232323,-255.0762,0.0001178,2]
[356603907,1742788232332,-671.23777411,0.000118,2]
[356603908,1742788232342,-427.1555054,0.0001188,2]
[356603909,1742788232353,-2338.6817208,0.0001188,2]
[356603929,1742788237992,-426.61574178,0.0001188,2]
[356603930,1742788238151,-1693.58019023,0.0001188,2]
[356603931,1742788238161,-163.7192,0.000119,2]
[356603932,1742788238172,-462.5366,0.000119,2]
[356603933,1742788238182,-31245.6462,0.000119,2]
[356603934,1742788238192,-2055.0657,0.000119,2]
[356603935,1742788238201,-518.4343,0.000119,2]
[356603936,1742788238211,-516.639,0.000119,2]
[356603937,1742788238220,-331.83645432,0.000119,2]
[356603938,1742788238229,-500.0,0.00011973,2]
[356603939,1742788238238,-1738.1764455,0.00011996,2]
[356603940,1742788238247,-4588.5702333,0.00011996,2]
[356603941,1742788238256,-918.0,0.00012,2]
[356603942,1742788238266,-2725.80052902,0.00012,2]
[356603953,1742788240230,-1620657.28086621,0.00012,2]
[356603954,1742788240239,-1102105.8770654,0.00012,2]
[356603955,1742788240439,-3687.79198762,0.00012,2]
[356604008,1742788243166,580.87,0.00010601,2]
[356604018,1742788246061,-831.0,0.00012,2]
[356604019,1742788246071,-406.2,0.00012,2]
[356604020,1742788246220,-252.71462698,0.00012,2]
[356604021,1742788246271,-675.35,0.00012,2]
[356604022,1742788246505,-5597.82971983,0.00012,2]
[356604023,1742788322039,350.0,0.00011806,3]
[356604024,1742788441567,350.0,0.0001177,3]
[356604041,1742789407893,551.82,9.224e-05,2]
[356604044,1742789432106,-355.32,0.00011157,2]
[356604045,1742789432116,-2591.32,0.0001117,2]
[356604046,1742789432126,-97.485,0.00011488,2]
[356604047,1742789432211,-300.88239788,0.00011488,2]
[356604048,1742789432266,-153.45260212,0.00011488,2]
[356604049,1742789432279,-365.7154127,0.0001164,2]
[356604050,1742789432289,-710.46,0.0001176,2]
[356604051,1742789432298,-150.13103108,0.00011767,2]
[356604052,1742789432308,-160.46565614,0.000118,2]
[356604053,1742789432318,-500.0,0.00011836,2]
[356604054,1742789432327,-1000.0,0.00011867,2]
[356604055,1742789432338,-8697.5898597,0.000119,2]
[356604056,1742789432351,-1234.8738403,0.000119,2]
[356604057,1742789432361,-1545.12615964,0.000119,2]
[356604058,1742789432372,-9572.41782992,0.000119,2]
[356604069,1742789438103,-1005.17242714,0.000119,2]
[356604093,1742789440300,-498.80944743,0.000119,2]
[356604094,1742789440312,-807.1755858,0.000119,2]
[356604095,1742789440326,-2599.56005372,0.000119,2]
[356604103,1742789443068,-3971.72849635,0.000119,2]
[356604105,1742789443077,-500.0,0.00011945,2]
[356604107,1742789443086,-500.0,0.00011973,2]
[356604109,1742789443095,-636.0,0.00012,2]
[356604111,1742789443104,-2717155.42943526,0.00012,2]
[356604153,1742789748700,533.565,0.00031847,30]
[356604154,1742790001711,150.0,0.00011995,7]
[356604155,1742790153301,258.24,0.00010854,2]
[356604156,1742790157977,-229.87709353,0.00010973,2]
[356604157,1742790218910,-150.0,0.00010934,2]
[356604158,1742790422906,250.0,0.00010841,2]
[356604172,1742790552892,150.0,0.00010828,2]
[356604173,1742790562413,381.09,0.00010807,2]
[356604180,1742790632284,-50.0,0.00010934,2]
[356604181,1742790632295,-1000.0,0.00010934,2]
[356604182,1742790632304,-150.0,0.00010944,2]
[356604183,1742790632411,-86.49290647,0.00010973,2]
[356604184,1742790632451,-250.0,0.00011,2]
[356604185,1742790632460,-160.81,0.00011159,2]
[356604186,1742790632469,-160.81,0.00011209,2]
[356604187,1742790632478,-160.81,0.00011258,2]
[356604188,1742790632487,-160.81,0.00011308,2]
[356604189,1742790632495,-305.16791959,0.00011332,2]
[356604190,1742790632504,-160.81,0.00011357,2]
[356604191,1742790632513,-522.79946847,0.00011357,2]
[356604192,1742790633862,2094.23,0.00010779,2]
[356604193,1742790635611,-505.95,0.00011357,2]
[356604194,1742790635623,-615.1,0.00011357,2]
[356604195,1742790635777,-3974.00640484,0.00011357,2]
[356604196,1742790635790,-418.10412669,0.00011357,2]
[356604197,1742790635800,-1465.16243881,0.00011357,2]
[356604218,1742790638292,-352.98756119,0.00011357,2]
[356604219,1742790638302,-150.99,0.00011357,2]
[356604220,1742790638311,-1236.37388087,0.00011357,2]
[356604221,1742790638323,-2020.88429617,0.00011357,2]
[356604222,1742790638334,-5442.55182296,0.00011357,2]
[356604223,1742790638344,-160.81,0.00011407,2]
[356604224,1742790638353,-593.0,0.00011425,2]
[356604225,1742790638362,-160.81,0.00011456,2]
[356604226,1742790638371,-160.81,0.00011506,2]
[356604227,1742790638381,-160.81,0.00011556,2]
[356604228,1742790638390,-160.81,0.00011605,2]
[356604229,1742790638401,-320.0931078,0.0001164,2]
[356604230,1742790638410,-432.0,0.00011644,2]
[356604231,1742790638420,-4839.1265108,0.000117,2]
[356604232,1742790638429,-2988.55777192,0.0001173,2]
[356604233,1742790638439,-269.2206,0.000119,2]
[356604234,1742790638448,-6558.1811,0.000119,2]
[356604235,1742790638457,-589.7898,0.000119,2]
[356604236,1742790638466,-267.7079,0.000119,2]
[356604237,1742790638476,-162.895,0.000119,2]
[356604238,1742790638485,-555.3464,0.000119,2]
[356604239,1742790638494,-162.895,0.00011902,2]
[356604240,1742790638504,-162.895,0.00011903,2]
[356604241,1742790638513,-162.895,0.00011905,2]
[356604242,1742790638523,-150.0,0.00011968,2]
[356604243,1742790638532,-1107.5638319,0.00011969,2]
[356604244,1742790638554,-561.2061681,0.00011969,2]
[356604245,1742790638564,-1306.69330268,0.00011972,2]
[356604246,1742790638575,-193.30669732,0.00011972,2]
[356604247,1742790638585,-272.5882302,0.00011973,2]
[356604256,1742790640455,-227.4117698,0.00011973,2]
[356604257,1742790640464,-1624.33609899,0.00011989,2]
[356604258,1742790640511,-11447.17390101,0.00011989,2]
[356604259,1742790640521,-5498.0050027,0.00011995,2]
[356604260,1742790640530,-9999.99,0.00011995,2]
[356604261,1742790640540,-999.99,0.00011995,2]
[356604262,1742790640549,-468.98,0.00011995,2]
[356604263,1742790640559,-10343.7662886,0.00011995,2]
[356604264,1742790640579,-181.49418268,0.00011999,2]
[356604265,1742790640589,-257.64467381,0.00011999,2]
[356604266,1742790640599,-386954.63342769,0.00012,2]
[356604267,1742790640609,-500.0,0.00012,2]
[356604268,1742790640618,-500.0,0.00012,2]
[356604269,1742790640628,-500.0,0.00012,2]
[356604270,1742790640638,-583.0,0.00012,2]
[356604271,1742790640647,-2290556.75195877,0.00012,2]
[356604272,1742790640660,-2956.24689479,0.00012,2]
[356604287,1742790643586,-270.30385626,0.00011905,2]
[356604288,1742790643697,-288.08364258,0.00011905,2]
[356604289,1742790643710,-43959.18368667,0.00012,2]
[356604293,1742790646356,-2235.42751346,0.00012,2]
[356604294,1742790646520,-2022.6,0.00012,2]
[356604332,1742790650770,-150.0,0.00010855,2]
[356604333,1742790799177,3046.32,0.00031821,30]
[356604334,1742791230479,150.0,0.00011127,7]
[356604335,1742791385967,1500.0,0.00010621,2]
[356604336,1742791386243,288.85,0.00010621,2]
[356604337,1742791496773,250.0,0.00010637,2]
[356604338,1742791509998,1000.0,0.00010616,2]
[356604339,1742791601266,246.38606325,0.00025,60]
[356604364,1742791795145,628.45,8.702e-05,2]
[356604367,1742791831477,-485.11,0.00010966,2]
[356604368,1742791835089,-143.34,0.00010966,2]
[356604369,1742791835099,-215.849994,0.00011,2]
[356604370,1742791835149,-34.150006,0.00011,2]
[356604371,1742791835158,-150.0,0.00011009,2]
[356604372,1742791835168,-282.99,0.00011163,2]
[356604373,1742791835178,-282.99,0.00011187,2]
[356604374,1742791835187,-300.0,0.00011204,2]
[356604375,1742791835197,-224.78192117,0.00011205,2]
[356604376,1742791835208,-497.35,0.00011205,2]
[356604377,1742791835220,-73.06107883,0.00011205,2]
[356604378,1742791835229,-385.06692117,0.00011205,2]
[356604379,1742791835312,-4411.61070056,0.00011205,2]
[356604395,1742791835751,164.84,0.00010585,2]
[356604409,1742791839570,-408.77392775,0.00011205,2]
[356604410,1742791839581,-866.72718495,0.00011205,2]
[356604411,1742791839785,-908.8,0.00011205,2]
[356604419,1742791842405,-4478.33126557,0.00011205,2]
[356604421,1742791842415,-282.99,0.0001121,2]
[356604423,1742791842424,-23900.0,0.00011227,2]
[356604425,1742791842433,-282.99,0.00011234,2]
[356604437,1742791842572,-282.99,0.00011257,2]
[356604438,1742791842586,-282.99,0.00011281,2]
[356604439,1742791842596,-468.98,0.00011281,2]
[356604440,1742791842606,-999.99,0.00011281,2]
[356604441,1742791842616,-857.14,0.00011281,2]
[356604442,1742791842626,-216.54,0.00011281,2]
[356604443,1742791842635,-282.99,0.00011304,2]
[356604444,1742791842645,-282.99,0.00011328,2]
[356604445,1742791842655,-500.0,0.0001135,2]
[356604446,1742791842664,-500.0,0.0001135,2]
[356604447,1742791842674,-500.0,0.0001135,2]
[356604448,1742791842683,-500.0,0.0001135,2]
[356604449,1742791842693,-500.0,0.0001135,2]
[356604450,1742791842703,-500.0,0.0001135,2]
[356604451,1742791842712,-500.0,0.0001135,2]
[356604452,1742791842722,-500.0,0.0001135,2]
[356604453,1742791842731,-500.0,0.0001135,2]
[356604454,1742791842740,-500.0,0.0001135,2]
[356604455,1742791842750,-500.0,0.0001135,2]
[356604456,1742791842759,-500.0,0.0001135,2]
[356604457,1742791842769,-500.0,0.0001135,2]
[356604458,1742791842779,-609.11953579,0.0001135,2]
[356604459,1742791842788,-500.0,0.0001135,2]
[356604460,1742791842797,-500.0,0.0001135,2]
[356604461,1742791842807,-500.0,0.0001135,2]
[356604462,1742791842816,-500.0,0.0001135,2]
[356604463,1742791842826,-500.0,0.0001135,2]
[356604464,1742791842835,-500.0,0.0001135,2]
[356604465,1742791842844,-500.0,0.0001135,2]
[356604466,1742791842853,-500.0,0.0001135,2]
[356604467,1742791842863,-500.0,0.0001135,2]
[356604468,1742791842872,-500.0,0.0001135,2]
[356604469,1742791842881,-500.0,0.0001135,2]
[356604470,1742791842891,-500.0,0.0001135,2]
[356604471,1742791842900,-500.0,0.0001135,2]
[356604472,1742791842909,-500.0,0.0001135,2]
[356604473,1742791842919,-9999.99,0.0001135,2]
[356604474,1742791842928,-282.99,0.00011351,2]
[356604475,1742791842938,-150.0,0.00011371,2]
[356604476,1742791842947,-282.99,0.00011375,2]
[356604477,1742791842956,-282.99,0.00011398,2]
[356604478,1742791842965,-282.99,0.00011422,2]
[356604479,1742791842974,-282.99,0.00011445,2]
[356604480,1742791842984,-282.99,0.00011469,2]
[356604481,1742791842995,-282.99,0.00011492,2]
[356604482,1742791843005,-282.99,0.00011516,2]
[356604483,1742791843015,-282.99,0.00011539,2]
[356604484,1742791843024,-282.99,0.00011563,2]
[356604485,1742791843034,-169.79870836,0.00011581,2]
[356604486,1742791843044,-282.99,0.00011586,2]
[356604487,1742791843054,-282.99,0.0001161,2]
[356604489,1742791843063,-575.1252546,0.0001164,2]
[356604490,1742791843073,-19820.5318,0.000119,2]
[356604491,1742791843083,-150.99,0.000119,2]
[356604492,1742791843094,-2500.0,0.000119,2]
[356604494,1742791843104,-1443.2081,0.000119,2]
[356604495,1742791843114,-150.0,0.0001194,2]
[356604496,1742791843125,-150.0,0.0001194,2]
[356604497,1742791843134,-1000.0,0.00011943,2]
[356604498,1742791843144,-288.85,0.00011948,2]
[356604499,1742791843154,-2681.0778722,0.00011997,2]
[356604500,1742791843163,-181.49418268,0.00011999,2]
[356604501,1742791843172,-257.64467381,0.00011999,2]
[356604502,1742791843182,-749.0,0.00012,2]
[356604503,1742791843192,-2632371.5265386,0.00012,2]
[356604504,1742791843204,-13422.86759559,0.00012,2]
[356604505,1742791843223,-1012.97035628,0.00012,2]
[356604506,1742791843235,-1039.9999,0.00012,2]
[356604507,1742791843256,-271.92848716,0.00012,2]
[356604518,1742791845474,-2902.93718712,0.00012,2]
[356604519,1742791845530,-1748.85581822,0.00012,2]
[356604520,1742791845591,-1557.38860528,0.00012,2]
[356604521,1742791845604,-368.35192424,0.00012,2]
[356604522,1742791845857,-5820.07521067,0.00012,2]
[356604523,1742791845868,-1018.25,0.00012,2]
[356604525,1742792041613,350.0,0.00011248,3]
[356604526,1742792565050,-10000.0,0.00011,2]
[356604527,1742792634925,-150.0,0.00011248,2]
[356604528,1742792634953,-150.0,0.00011566,2]
[356604529,1742792634978,-431.343941,0.0001164,2]
[356604530,1742792635003,-338.05395599,0.00011873,2]
[356604531,1742792635030,-9906.6230323,0.0001188,2]
[356604532,1742792635056,-502.10093818,0.00011973,2]